[Event "RUS-ch Girls U21 2021"]
[Site "Loo"]
[Date "2021.04.24"]
[Round "4.5"]
[White "Filippova, Darya"]
[Black "Zotova, Anastasia"]
[Result "1-0"]
[ECO "A36"]
[WhiteElo "1915"]
[BlackElo "2160"]
[Annotator "NA"]
[PlyCount "57"]
[EventDate "2021.04.21"]
[EventType "swiss"]
[EventCountry "RUS"]
[SourceTitle "playchess.com"]
[Source "ChessBase"]
[SourceQuality "1"]
[TimeControl "40/5400+30:1800+30"]

1. c4 {[%emt 0:00:00]} c5 {[%emt 0:00:00]} 2. Nc3 {[%emt 0:00:11]} Nc6 3. g3 {[%emt 0:00:09]} g6 {[%emt 0:00:00]} 4. Bg2 {[%emt 0:00:07]} Bg7 {[%emt 0:00:00]} 5. e3 {[%emt 0:04:15]} e5 {[%emt 0:00:10]} 6. Nge2 {[%emt 0:01:16]} Nge7 {[%emt 0:00:13]} 7. d3 {[%emt 0:03:11]} O-O {[%emt 0:00:11]} 8. O-O {[%emt 0:00:10]} d6 {[%emt 0:00:17]} 9. Nd5 {[%emt 0:01:12]} Be6 {[%emt 0:01:11]} 10. Nec3 {[%emt 0:00:15]} Rb8 {[%emt 0:02:40]} 11. Bd2 {[%emt 0:15:27]} a6 {[%emt 0:03:48]} 12. a4 {[%emt 0:02:40]} Bxd5 {[%emt 0:03:35]} 13. Nxd5 {[%emt 0:02:13]} Nxd5 {[%emt 0:01:13]} 14. cxd5 {[%emt 0:02:36]} Ne7 {[%emt 0:00:13]} 15. b4 {[%emt 0:03:06]} e4 {[%emt 0:03:46]} 16. dxe4 {[%emt 0:03:57]} Bxa1 {[%emt 0:01:14]} 17. Qxa1 {[%emt 0:00:03]} f6 {[%emt 0:06:42]} 18. Bc3 {[%emt 0:02:53]} Kg7 {[%emt 0:01:13]} 19. bxc5 {[%emt 0:01:59]} dxc5 {[%emt 0:00:16]} 20. e5 {[%emt 0:01:15]} Nf5 {[%emt 0:04:27]} 21. exf6+ {[%emt 0:01:31]} Kf7 {[%emt 0:00:50]} 22. e4 {[%emt 0:03:44]} Nd4 {[%emt 0:00:46]} 23. Bxd4 {[%emt 0:01:59]} cxd4 {[%emt 0:00:09]} 24. e5 Qb6 {[%emt 0:00:51]} 25. Rb1 {[%emt 0:03:59]} Qc5 {[%emt 0:01:46]} 26. Rc1 {[%emt 0:00:12]} Qb4 {[%emt 0:01:14]} 27. Rc7+ {[%emt 0:00:11]} Ke8 {[%emt 0:00:15]} 28. Qc1 {[%emt 0:01:49]} Kd8 {[%emt 0:00:46]} 29. Bh3 {[%emt 0:00:48]} 1-0

[Event "RUS-ch Girls U21 2021"]
[Site "Loo"]
[Date "2021.04.24"]
[Round "4.6"]
[White "Garmash, Aliona"]
[Black "Koroleva, Evgeniya"]
[Result "1-0"]
[ECO "D26"]
[WhiteElo "2120"]
[BlackElo "1884"]
[Annotator "NA"]
[PlyCount "69"]
[EventDate "2021.04.21"]
[EventType "swiss"]
[EventCountry "RUS"]
[SourceTitle "playchess.com"]
[Source "ChessBase"]
[SourceQuality "1"]
[TimeControl "40/5400+30:1800+30"]

1. d4 {[%emt 0:00:00]} d5 {[%emt 0:00:00]} 2. Nf3 {[%emt 0:00:00]} Nf6 {[%emt 0:00:00]} 3. c4 {[%emt 0:00:00]} dxc4 {[%emt 0:00:00]} 4. e3 {[%emt 0:00:00]} e6 {[%emt 0:00:00]} 5. Bxc4 {[%emt 0:00:00]} a6 {[%emt 0:00:00]} 6. O-O {[%emt 0:00:00]} Nbd7 {[%emt 0:00:00]} 7. a4 {[%emt 0:00:09]} c5 {[%emt 0:00:01]} 8. Nc3 {[%emt 0:00:13]} Qc7 {[%emt 0:00:26]} 9. Qe2 {[%emt 0:00:07]} Bd6 {[%emt 0:01:46]} 10. Rd1 {[%emt 0:00:38]} O-O {[%emt 0:00:08]} 11. h3 {[%emt 0:00:05]} b6 {[%emt 0:00:05]} 12. d5 {[%emt 0:01:32]} Ne5 {[%emt 0:00:08]} 13. Nxe5 {[%emt 0:01:06]} Bxe5 {[%emt 0:00:06]} 14. dxe6 Bxe6 15. Bxa6 {[%emt 0:30:38]} Bxc3 {[%emt 0:05:28]} 16. bxc3 Bb3 {[%emt 0:00:08]} 17. Re1 {[%emt 0:02:37]} c4 {[%emt 0:01:37]} 18. Bb5 {[%emt 0:01:43]} Ne4 {[%emt 0:00:20]} 19. Ba3 {[%emt 0:14:01]} Rfd8 {[%emt 0:01:05]} 20. Bb4 {[%emt 0:18:21]} f5 {[%emt 0:00:16]} 21. Qf3 {[%emt 0:01:18]} Rd5 {[%emt 0:03:57]} 22. Qf4 {[%emt 0:03:44]} Qc8 {[%emt 0:00:09]} 23. f3 {[%emt 0:02:15]} g5 {[%emt 0:25:52]} 24. fxe4 {[%emt 0:11:50]} gxf4 {[%emt 0:00:18]} 25. exd5 {[%emt 0:00:02]} f3 {[%emt 0:11:40]} 26. gxf3 {[%emt 0:00:14]} Qd8 {[%emt 0:05:39]} 27. d6 {[%emt 0:01:11]} Kh8 {[%emt 0:07:38]} 28. d7 {[%emt 0:07:19]} Qh4 {[%emt 0:06:30]} 29. Re2 {[%emt 0:00:25]} f4 {[%emt 0:09:18]} 30. exf4 {[%emt 0:00:55]} Qxh3 {[%emt 0:10:56]} 31. Rg2 {[%emt 0:01:00]} Qh4 {[%emt 0:01:04]} 32. Bd6 {[%emt 0:00:32]} h5 {[%emt 0:00:07]} 33. Be5+ {[%emt 0:00:11]} Kh7 {[%emt 0:00:04]} 34. Bc6 {[%emt 0:00:15]} Rg8 {[%emt 0:02:43]} 35. Be4+ {[%emt 0:00:08]} 1-0

[Event "RUS-ch Girls U21 2021"]
[Site "Loo"]
[Date "2021.04.24"]
[Round "4.7"]
[White "Pankova, Julia"]
[Black "Kochukova, Anna"]
[Result "1-0"]
[ECO "B46"]
[WhiteElo "1884"]
[BlackElo "2108"]
[Annotator "NA"]
[PlyCount "173"]
[EventDate "2021.04.21"]
[EventType "swiss"]
[EventCountry "RUS"]
[SourceTitle "playchess.com"]
[Source "ChessBase"]
[SourceQuality "1"]
[TimeControl "40/5400+30:1800+30"]

1. e4 {[%emt 0:00:00]} c5 {[%emt 0:00:00]} 2. Nf3 {[%emt 0:00:00]} e6 {[%emt 0:00:00]} 3. d4 {[%emt 0:00:00]} cxd4 {[%emt 0:00:07]} 4. Nxd4 {[%emt 0:00:00]} Nc6 {[%emt 0:00:44]} 5. Nc3 {[%emt 0:00:11]} a6 {[%emt 0:00:13]} 6. Be2 {[%emt 0:00:25]} Qc7 {[%emt 0:00:12]} 7. O-O {[%emt 0:00:11]} Nf6 {[%emt 0:01:46]} 8. Be3 {[%emt 0:00:15]} b5 {[%emt 0:01:02]} 9. Nxc6 {[%emt 0:00:24]} dxc6 {[%emt 0:00:38]} 10. f4 {[%emt 0:00:13]} Be7 {[%emt 0:09:50]} 11. e5 {[%emt 0:00:21]} Nd5 {[%emt 0:00:24]} 12. Nxd5 {[%emt 0:00:06]} cxd5 {[%emt 0:00:28]} 13. Qd4 {[%emt 0:08:48]} O-O {[%emt 0:07:43]} 14. c3 {[%emt 0:07:45]} Bd7 {[%emt 0:02:02]} 15. b4 {[%emt 0:07:37]} f6 {[%emt 0:06:24]} 16. Bd3 {[%emt 0:31:15]} Rac8 {[%emt 0:01:00]} 17. Rac1 {[%emt 0:00:22]} Qb8 {[%emt 0:01:15]} 18. Rf3 {[%emt 0:06:20]} Bd8 {[%emt 0:15:53]} 19. Rh3 {[%emt 0:01:11]} g6 {[%emt 0:00:43]} 20. Bc2 {[%emt 0:09:23]} Be8 {[%emt 0:06:32]} 21. Qd2 {[%emt 0:09:36]} fxe5 {[%emt 0:03:15]} 22. fxe5 {[%emt 0:00:06]} Qxe5 {[%emt 0:01:18]} 23. Bd4 {[%emt 0:00:55]} Qg5 {[%emt 0:03:16]} 24. Qe1 {[%emt 0:04:28]} Rc6 {[%emt 0:01:54]} 25. Rg3 {[%emt 0:01:04]} Qh4 {[%emt 0:01:56]} 26. Qe2 {[%emt 0:07:10]} Bb6 {[%emt 0:04:19]} 27. Bxb6 {[%emt 0:00:57]} Rxb6 {[%emt 0:00:01]} 28. Re1 {[%emt 0:00:36]} Rc6 {[%emt 0:01:48]} 29. Re3 {[%emt 0:01:02]} Bd7 {[%emt 0:04:13]} 30. a4 {[%emt 0:01:48]} Rcc8 {[%emt 0:02:02]} 31. a5 {[%emt 0:01:49]} Rf6 {[%emt 0:01:13]} 32. Rh3 {[%emt 0:01:04]} Qc4 {[%emt 0:01:41]} 33. Qe3 {[%emt 0:00:17]} Rcf8 {[%emt 0:01:04]} 34. Rf3 {[%emt 0:00:43]} Rxf3 {[%emt 0:00:48]} 35. gxf3 {[%emt 0:00:05]} Qf4 {[%emt 0:08:36]} 36. Kg2 {[%emt 0:00:47]} Qxe3 {[%emt 0:00:39]} 37. Rxe3 {[%emt 0:00:04]} Rc8 {[%emt 0:00:03]} 38. Bb3 {[%emt 0:00:34]} Kf7 {[%emt 0:00:20]} 39. f4 {[%emt 0:00:18]} Kf6 {[%emt 0:02:03]} 40. h4 {[%emt 0:00:00]} Rd8 {[%emt 0:00:00]} 41. Kf2 {[%emt 0:08:16]} Bc8 {[%emt 0:02:56]} 42. Ke2 {[%emt 0:04:40]} Rd6 {[%emt 0:04:05]} 43. Re5 {[%emt 0:03:55]} Rd8 {[%emt 0:02:51]} 44. Ke3 {[%emt 0:01:36]} Ke7 {[%emt 0:00:19]} 45. Bc2 {[%emt 0:01:44]} Bd7 {[%emt 0:03:00]} 46. Bd3 {[%emt 0:05:33]} Rc8 {[%emt 0:03:28]} 47. Kd4 {[%emt 0:00:19]} Rf8 {[%emt 0:00:00]} 48. Ke3 {[%emt 0:00:15]} Be8 {[%emt 0:00:00]} 49. Rg5 {[%emt 0:01:12]} Kf6 {[%emt 0:03:39]} 50. Re5 {[%emt 0:01:25]} h6 {[%emt 0:00:33]} 51. Kd4 {[%emt 0:00:29]} Ke7 {[%emt 0:02:17]} 52. Ke3 {[%emt 0:00:09]} Kd6 {[%emt 0:00:17]} 53. Bb1 {[%emt 0:00:59]} Rh8 {[%emt 0:01:13]} 54. Kd4 {[%emt 0:00:37]} Bf7 {[%emt 0:04:15]} 55. Bd3 {[%emt 0:01:16]} Ke7 {[%emt 0:04:21]} 56. Ke3 {[%emt 0:01:01]} Kf6 {[%emt 0:00:13]} 57. Kd4 {[%emt 0:00:21]} Rc8 {[%emt 0:00:58]} 58. Be2 {[%emt 0:00:29]} Be8 {[%emt 0:00:41]} 59. Rxe6+ {[%emt 0:04:06]} Kf5 {[%emt 0:00:06]} 60. Rxa6 {[%emt 0:00:33]} Kxf4 {[%emt 0:00:19]} 61. Rb6 {[%emt 0:01:24]} Kg3 {[%emt 0:00:12]} 62. h5 {[%emt 0:00:19]} gxh5 {[%emt 0:00:16]} 63. Bxb5 {[%emt 0:01:32]} Bxb5 {[%emt 0:01:45]} 64. Rxb5 {[%emt 0:00:04]} h4 {[%emt 0:01:39]} 65. Rxd5 {[%emt 0:00:21]} Kg4 {[%emt 0:02:31]} 66. a6 {[%emt 0:01:08]} h3 {[%emt 0:00:02]} 67. Ra5 {[%emt 0:00:24]} h2 {[%emt 0:03:13]} 68. Ra1 {[%emt 0:00:04]} Kf3 {[%emt 0:00:08]} 69. b5 {[%emt 0:00:29]} Ra8 {[%emt 0:01:50]} 70. c4 {[%emt 0:00:48]} h5 {[%emt 0:00:09]} 71. c5 {[%emt 0:00:39]} h4 {[%emt 0:00:01]} 72. c6 {[%emt 0:00:58]} h3 {[%emt 0:00:01]} 73. c7 {[%emt 0:00:27]} Kg2 {[%emt 0:00:04]} 74. Ra2+ {[%emt 0:00:40]} Kg1 {[%emt 0:00:10]} 75. Ra1+ {[%emt 0:00:27]} Kg2 {[%emt 0:00:02]} 76. Ra2+ {[%emt 0:00:01]} Kg3 {[%emt 0:00:03]} 77. Ra1 {[%emt 0:01:03]} Kg2 {[%emt 0:00:01]} 78. b6 {[%emt 0:00:31]} h1=Q {[%emt 0:01:42]} 79. Rxh1 {[%emt 0:00:07]} Kxh1 {[%emt 0:00:16]} 80. b7 {[%emt 0:00:07]} Rxa6 {[%emt 0:00:05]} 81. c8=Q {[%emt 0:00:40]} Ra4+ {[%emt 0:00:48]} 82. Kc3 {[%emt 0:00:55]} Ra3+ {[%emt 0:00:58]} 83. Kb2 {[%emt 0:00:10]} Rg3 {[%emt 0:00:39]} 84. b8=Q {[%emt 0:00:40]} h2 {[%emt 0:00:05]} 85. Qc1+ {[%emt 0:00:43]} Kg2 {[%emt 0:00:11]} 86. Qxg3+ {[%emt 0:00:13]} Kxg3 {[%emt 0:00:02]} 87. Qh1 {[%emt 0:00:07]} 1-0

[Event "RUS-ch Girls U21 2021"]
[Site "Loo"]
[Date "2021.04.24"]
[Round "4.8"]
[White "Grigorieva, Yulia"]
[Black "Stroganova, Karina"]
[Result "1-0"]
[ECO "C61"]
[WhiteElo "2236"]
[BlackElo "1731"]
[Annotator "NA"]
[PlyCount "59"]
[EventDate "2021.04.21"]
[EventType "swiss"]
[EventCountry "RUS"]
[SourceTitle "playchess.com"]
[Source "ChessBase"]
[SourceQuality "1"]
[TimeControl "40/5400+30:1800+30"]

1. e4 {[%emt 0:00:00]} e5 {[%emt 0:00:00]} 2. Nf3 {[%emt 0:00:00]} Nc6 {[%emt 0:00:00]} 3. Bb5 {[%emt 0:00:00]} Nd4 {[%emt 0:00:20]} 4. Nxd4 {[%emt 0:00:04]} exd4 {[%emt 0:00:06]} 5. O-O {[%emt 0:00:29]} Bc5 {[%emt 0:00:12]} 6. Bc4 {[%emt 0:00:35]} h5 {[%emt 0:00:23]} 7. d3 {[%emt 0:07:33]} c6 {[%emt 0:00:51]} 8. Bb3 {[%emt 0:03:26]} d6 {[%emt 0:02:06]} 9. f4 {[%emt 0:04:09]} Qe7 {[%emt 0:15:35]} 10. Nd2 {[%emt 0:03:41]} Bd7 {[%emt 0:05:28]} 11. Nf3 {[%emt 0:02:02]} O-O-O {[%emt 0:01:34]} 12. Bd2 {[%emt 0:06:26]} f6 {[%emt 0:06:41]} 13. a4 {[%emt 0:08:05]} Nh6 {[%emt 0:05:03]} 14. Bc4 {[%emt 0:04:41]} Bg4 {[%emt 0:05:16]} 15. b4 {[%emt 0:09:03]} d5 {[%emt 0:02:56]} 16. bxc5 {[%emt 0:08:56]} dxc4 {[%emt 0:00:20]} 17. Bb4 {[%emt 0:00:57]} c3 {[%emt 0:02:20]} 18. h3 {[%emt 0:03:24]} Be6 {[%emt 0:07:44]} 19. a5 {[%emt 0:04:23]} a6 {[%emt 0:00:30]} 20. Qe2 {[%emt 0:02:00]} g5 {[%emt 0:05:52]} 21. fxg5 {[%emt 0:11:31]} fxg5 {[%emt 0:00:09]} 22. Nxd4 {[%emt 0:01:55]} Rxd4 {[%emt 0:01:32]} 23. Bxc3 {[%emt 0:00:05]} Qxc5 {[%emt 0:00:27]} 24. Bxd4 {[%emt 0:00:14]} Qxd4+ {[%emt 0:00:07]} 25. Qf2 {[%emt 0:01:25]} Qd6 {[%emt 0:20:14]} 26. Rab1 {[%emt 0:05:42]} Bxh3 {[%emt 0:12:42]} 27. Qa7 {[%emt 0:07:31]} Kd7 {[%emt 0:00:49]} 28. Rxb7+ {[%emt 0:01:04]} Ke6 {[%emt 0:00:05]} 29. e5 {[%emt 0:01:11]} Kxe5 {[%emt 0:01:19]} 30. Qe3+ {[%emt 0:00:13]} 1-0

[Event "RUS-ch Girls U21 2021"]
[Site "Loo"]
[Date "2021.04.24"]
[Round "4.9"]
[White "Bogdanova, Darya"]
[Black "Badmaeva, Baina"]
[Result "1/2-1/2"]
[ECO "A53"]
[WhiteElo "1762"]
[BlackElo "1751"]
[Annotator "NA"]
[PlyCount "95"]
[EventDate "2021.04.21"]
[EventType "swiss"]
[EventCountry "RUS"]
[SourceTitle "playchess.com"]
[Source "ChessBase"]
[SourceQuality "1"]
[TimeControl "40/5400+30:1800+30"]

1. d4 {[%emt 0:00:00]} Nf6 {[%emt 0:00:00]} 2. c4 {[%emt 0:00:00]} d6 {[%emt 0:00:00]} 3. g3 {[%emt 0:00:00]} g6 {[%emt 0:00:00]} 4. Bg2 {[%emt 0:00:00]} Bg7 {[%emt 0:00:00]} 5. Nf3 {[%emt 0:00:12]} O-O {[%emt 0:00:00]} 6. O-O {[%emt 0:00:09]} c6 {[%emt 0:00:10]} 7. Nc3 {[%emt 0:00:16]} Nbd7 {[%emt 0:00:16]} 8. Qc2 {[%emt 0:00:26]} e5 {[%emt 0:00:58]} 9. Rd1 {[%emt 0:00:35]} Qe7 {[%emt 0:02:47]} 10. e4 {[%emt 0:01:10]} exd4 {[%emt 0:04:10]} 11. Nxd4 {[%emt 0:00:23]} Ne5 {[%emt 0:00:13]} 12. b3 {[%emt 0:02:27]} Bg4 {[%emt 0:03:47]} 13. f3 {[%emt 0:01:25]} c5 {[%emt 0:01:44]} 14. fxg4 {[%emt 0:22:17]} cxd4 {[%emt 0:00:08]} 15. Rxd4 {[%emt 0:00:23]} Nfxg4 {[%emt 0:01:13]} 16. Kh1 {[%emt 0:16:46]} Qf6 {[%emt 0:08:54]} 17. Rd5 {[%emt 0:19:16]} Nf3 {[%emt 0:37:00]} 18. e5 {[%emt 0:16:41]} Qf5 {[%emt 0:01:08]} 19. Qe2 {[%emt 0:01:35]} Nfxe5 {[%emt 0:01:43]} 20. Bb2 {[%emt 0:05:21]} Rae8 {[%emt 0:10:36]} 21. Ne4 {[%emt 0:02:50]} Qh5 {[%emt 0:02:50]} 22. Bf3 {[%emt 0:02:59]} Qh3 {[%emt 0:08:52]} 23. Qg2 {[%emt 0:02:54]} Qxh2+ {[%emt 0:02:13]} 24. Qxh2 {[%emt 0:00:12]} Nxh2 {[%emt 0:00:04]} 25. Bxe5 {[%emt 0:00:19]} Nxf3 {[%emt 0:00:19]} 26. Bxg7 {[%emt 0:00:11]} Rxe4 {[%emt 0:00:34]} 27. Kg2 {[%emt 0:02:18]} Kxg7 {[%emt 0:00:30]} 28. Kxf3 {[%emt 0:00:07]} Rfe8 {[%emt 0:00:53]} 29. Rxd6 {[%emt 0:01:50]} Re3+ {[%emt 0:00:07]} 30. Kg2 {[%emt 0:00:10]} Re2+ {[%emt 0:00:08]} 31. Kh3 {[%emt 0:00:19]} h5 {[%emt 0:03:08]} 32. Rd7 {[%emt 0:00:32]} R8e7 {[%emt 0:03:29]} 33. Rxe7 {[%emt 0:01:07]} Rxe7 {[%emt 0:00:03]} 34. Rd1 {[%emt 0:00:04]} b6 {[%emt 0:00:36]} 35. Rd2 {[%emt 0:00:30]} g5 {[%emt 0:01:28]} 36. Kg2 {[%emt 0:00:31]} f5 {[%emt 0:00:57]} 37. Kf3 {[%emt 0:00:31]} Kf6 {[%emt 0:00:06]} 38. Rd6+ {[%emt 0:00:44]} Re6 {[%emt 0:01:30]} 39. Rd7 {[%emt 0:00:07]} Re7 {[%emt 0:00:13]} 40. Rd6+ {[%emt 0:00:00]} Ke5 {[%emt 0:00:00]} 41. Rh6 {[%emt 0:00:41]} Rd7 {[%emt 0:01:50]} 42. Rxh5 {[%emt 0:00:42]} Rd3+ {[%emt 0:00:07]} 43. Kf2 {[%emt 0:01:15]} g4 {[%emt 0:01:03]} 44. Rh8 {[%emt 0:03:27]} Rd2+ {[%emt 0:08:17]} 45. Ke3 {[%emt 0:00:05]} Rxa2 {[%emt 0:00:26]} 46. Re8+ {[%emt 0:00:09]} Kd6 {[%emt 0:00:24]} 47. Rf8 {[%emt 0:00:45]} Ke7 {[%emt 0:00:36]} 48. Rxf5 {[%emt 0:00:35]} 1/2-1/2

[Event "RUS-ch Girls U21 2021"]
[Site "Loo"]
[Date "2021.04.24"]
[Round "4.10"]
[White "Emelyanova, Victoria"]
[Black "Gelman, Inna"]
[Result "0-1"]
[ECO "D47"]
[WhiteElo "1765"]
[BlackElo "1801"]
[Annotator "NA"]
[PlyCount "130"]
[EventDate "2021.04.21"]
[EventType "swiss"]
[EventCountry "RUS"]
[SourceTitle "playchess.com"]
[Source "ChessBase"]
[SourceQuality "1"]
[TimeControl "40/5400+30:1800+30"]

1. d4 {[%emt 0:00:00]} d5 {[%emt 0:00:00]} 2. c4 {[%emt 0:00:00]} e6 {[%emt 0:00:00]} 3. Nc3 {[%emt 0:00:00]} Nf6 {[%emt 0:00:00]} 4. e3 {[%emt 0:01:35]} c6 {[%emt 0:00:38]} 5. Nf3 {[%emt 0:00:14]} Nbd7 {[%emt 0:00:07]} 6. Bd3 {[%emt 0:00:14]} dxc4 {[%emt 0:00:17]} 7. Bxc4 {[%emt 0:00:04]} b5 {[%emt 0:00:49]} 8. Bd3 {[%emt 0:00:27]} Bb7 {[%emt 0:00:14]} 9. e4 {[%emt 0:03:13]} Be7 {[%emt 0:07:13]} 10. e5 {[%emt 0:04:18]} Nd5 {[%emt 0:00:08]} 11. O-O {[%emt 0:02:05]} a6 {[%emt 0:04:26]} 12. Nxd5 {[%emt 0:14:45]} cxd5 {[%emt 0:00:21]} 13. Bb1 {[%emt 0:04:49]} O-O {[%emt 0:02:48]} 14. Qd3 {[%emt 0:06:19]} g6 {[%emt 0:02:45]} 15. Bh6 {[%emt 0:10:24]} Re8 {[%emt 0:00:23]} 16. Ne1 {[%emt 0:14:34]} f6 {[%emt 0:06:39]} 17. Qg3 {[%emt 0:03:03]} f5 {[%emt 0:01:55]} 18. Nf3 {[%emt 0:02:42]} Bf8 {[%emt 0:00:30]} 19. Bxf8 {[%emt 0:02:56]} Nxf8 {[%emt 0:00:19]} 20. Bd3 {[%emt 0:04:08]} Qb6 {[%emt 0:05:41]} 21. h4 {[%emt 0:03:38]} h6 {[%emt 0:03:36]} 22. Qf4 {[%emt 0:10:40]} Kh7 {[%emt 0:01:49]} 23. g4 {[%emt 0:02:59]} Ra7 {[%emt 0:11:22]} 24. Kh2 {[%emt 0:02:25]} Bc8 {[%emt 0:00:38]} 25. Rg1 {[%emt 0:01:03]} Ree7 {[%emt 0:07:42]} 26. Rg2 {[%emt 0:02:07]} Rf7 {[%emt 0:00:47]} 27. Rag1 {[%emt 0:01:05]} Qd8 {[%emt 0:04:17]} 28. gxf5 {[%emt 0:01:46]} exf5 {[%emt 0:00:37]} 29. Qd2 {[%emt 0:02:02]} Rg7 {[%emt 0:00:55]} 30. Qe3 {[%emt 0:00:49]} Raf7 {[%emt 0:00:38]} 31. Qd2 {[%emt 0:00:34]} Qd7 {[%emt 0:00:51]} 32. Qc1 {[%emt 0:00:23]} f4 {[%emt 0:00:39]} 33. Rg4 {[%emt 0:00:33]} Kg8 {[%emt 0:12:05]} 34. Bf1 {[%emt 0:00:13]} Qf5 {[%emt 0:01:14]} 35. Qd1 {[%emt 0:00:48]} Qh5 {[%emt 0:02:03]} 36. R4g2 {[%emt 0:00:25]} Bf5 {[%emt 0:00:30]} 37. Be2 {[%emt 0:00:25]} g5 {[%emt 0:00:50]} 38. Kh1 {[%emt 0:00:16]} g4 {[%emt 0:00:34]} 39. Nh2 {[%emt 0:00:33]} f3 {[%emt 0:02:07]} 40. Nxf3 {[%emt 0:00:00]} gxf3 {[%emt 0:00:00]} 41. Bxf3 {[%emt 0:01:01]} Qxh4+ {[%emt 0:01:35]} 42. Rh2 {[%emt 0:00:29]} Qf4 {[%emt 0:01:32]} 43. Rxg7+ {[%emt 0:04:55]} Rxg7 {[%emt 0:00:41]} 44. Bxd5+ {[%emt 0:01:36]} Kh7 {[%emt 0:00:53]} 45. Rg2 {[%emt 0:11:59]} Be4 {[%emt 0:02:58]} 46. Bxe4+ {[%emt 0:00:22]} Qxe4 {[%emt 0:00:04]} 47. f3 {[%emt 0:00:30]} Qh4+ {[%emt 0:02:00]} 48. Kg1 {[%emt 0:01:20]} Rxg2+ {[%emt 0:01:04]} 49. Kxg2 {[%emt 0:00:04]} Ne6 {[%emt 0:00:43]} 50. Qc2+ {[%emt 0:03:09]} Kg7 {[%emt 0:00:09]} 51. Qc6 {[%emt 0:02:03]} Nxd4 {[%emt 0:24:04]} 52. Qd7+ {[%emt 0:01:34]} Kg6 {[%emt 0:00:29]} 53. e6 {[%emt 0:01:23]} Qg5+ {[%emt 0:00:50]} 54. Kf2 {[%emt 0:01:18]} Qd2+ {[%emt 0:00:37]} 55. Kg3 {[%emt 0:00:17]} Qe1+ {[%emt 0:00:23]} 56. Kg2 {[%emt 0:02:12]} Qe2+ {[%emt 0:00:20]} 57. Kh1 {[%emt 0:00:25]} Qxf3+ {[%emt 0:00:36]} 58. Kh2 {[%emt 0:00:04]} Qe2+ {[%emt 0:01:55]} 59. Kh1 {[%emt 0:00:08]} Nxe6 {[%emt 0:02:31]} 60. Qe8+ {[%emt 0:00:05]} Kg5 {[%emt 0:00:19]} 61. Qg8+ {[%emt 0:00:49]} Kh4 {[%emt 0:00:20]} 62. Qg6 {[%emt 0:01:02]} Qf1+ {[%emt 0:00:50]} 63. Kh2 {[%emt 0:00:04]} Qf2+ {[%emt 0:00:20]} 64. Kh1 {[%emt 0:00:02]} Qf3+ {[%emt 0:00:08]} 65. Kh2 {[%emt 0:00:08]} Qh3+ {[%emt 0:00:07]} 0-1

[Event "RUS-ch Girls U21 2021"]
[Site "Loo"]
[Date "2021.04.25"]
[Round "5.1"]
[White "Afonasieva, Anna"]
[Black "Goltseva, Ekaterina"]
[Result "1-0"]
[ECO "A45"]
[WhiteElo "2270"]
[BlackElo "2269"]
[Annotator "NA"]
[PlyCount "103"]
[EventDate "2021.04.21"]
[EventType "swiss"]
[EventCountry "RUS"]
[SourceTitle "playchess.com"]
[Source "ChessBase"]
[SourceQuality "1"]
[TimeControl "40/5400+30:1800+30"]

1. d4 {[%emt 0:00:00]} Nf6 {[%emt 0:00:00]} 2. Bf4 {[%emt 0:00:00]} c5 {[%emt 0:00:00]} 3. e3 {[%emt 0:00:00]} cxd4 {[%emt 0:00:00]} 4. exd4 {[%emt 0:00:06]} e6 {[%emt 0:00:00]} 5. c3 {[%emt 0:00:50]} b6 {[%emt 0:01:59]} 6. Nf3 {[%emt 0:01:12]} Bb7 {[%emt 0:00:13]} 7. Bd3 {[%emt 0:01:01]} Be7 {[%emt 0:00:15]} 8. Nbd2 {[%emt 0:00:13]} d6 {[%emt 0:02:21]} 9. O-O {[%emt 0:01:09]} O-O {[%emt 0:00:41]} 10. Qe2 {[%emt 0:01:02]} a6 {[%emt 0:01:24]} 11. a4 {[%emt 0:01:40]} Nbd7 {[%emt 0:00:55]} 12. Rfe1 {[%emt 0:02:22]} Re8 {[%emt 0:01:43]} 13. h3 {[%emt 0:02:49]} Qc7 {[%emt 0:02:32]} 14. Bh2 {[%emt 0:01:14]} Bf8 {[%emt 0:01:42]} 15. Ne4 {[%emt 0:09:15]} Nxe4 {[%emt 0:03:16]} 16. Bxe4 {[%emt 0:00:18]} Bxe4 {[%emt 0:00:57]} 17. Qxe4 {[%emt 0:00:05]} Nf6 {[%emt 0:00:22]} 18. Qd3 {[%emt 0:00:47]} Qb7 {[%emt 0:03:07]} 19. c4 {[%emt 0:01:51]} a5 {[%emt 0:19:42]} 20. b3 {[%emt 0:04:48]} Rac8 {[%emt 0:21:41]} 21. Rac1 {[%emt 0:04:28]} Red8 {[%emt 0:02:51]} 22. g4 {[%emt 0:05:51]} e5 {[%emt 0:09:51]} 23. dxe5 {[%emt 0:07:33]} dxe5 {[%emt 0:00:19]} 24. Qf5 {[%emt 0:00:49]} g6 {[%emt 0:08:03]} 25. Qxf6 {[%emt 0:05:15]} Bg7 {[%emt 0:01:03]} 26. Qh4 {[%emt 0:03:42]} Qxf3 {[%emt 0:00:10]} 27. Re3 {[%emt 0:01:54]} Rd1+ {[%emt 0:03:25]} 28. Rxd1 {[%emt 0:00:05]} Qxd1+ {[%emt 0:00:03]} 29. Kg2 {[%emt 0:00:04]} Re8 {[%emt 0:08:24]} 30. g5 {[%emt 0:01:53]} Qd8 31. Bg3 {[%emt 0:02:57]} Qe7 {[%emt 0:10:21]} 32. Qe4 $11 {[%emt 0:05:37]} Qxg5 {[%emt 0:02:04]} 33. f4 {[%emt 0:04:43]} Qd8 {[%emt 0:03:14]} 34. fxe5 {[%emt 0:00:10]} Qd2+ {[%emt 0:00:50]} 35. Re2 {[%emt 0:00:58]} Qd1 {[%emt 0:00:16]} 36. Rf2 {[%emt 0:05:00]} Qd7 {[%emt 0:01:36]} 37. Re2 {[%emt 0:04:43]} Qe6 {[%emt 0:02:27]} 38. Qd5 {[%emt 0:01:52]} f6 {[%emt 0:04:31]} 39. Bf2 {[%emt 0:05:36]} Kf8 {[%emt 0:03:28]} 40. Qb7 {[%emt 0:00:00]} fxe5 {[%emt 0:00:00]} 41. Qxb6 {[%emt 0:05:09]} Qf5 {[%emt 0:13:58]} 42. Qc6 {[%emt 0:04:41]} Bh6 {[%emt 0:08:07]} 43. Bg3 {[%emt 0:06:43]} Re6 {[%emt 0:06:00]} 44. Qc8+ {[%emt 0:02:12]} Kg7 {[%emt 0:01:05]} 45. Qd7+ {[%emt 0:02:47]} Kg8 {[%emt 0:01:07]} 46. c5 {[%emt 0:01:40]} Qf6 {[%emt 0:01:49]} 47. Qd5 {[%emt 0:04:38]} Qf7 {[%emt 0:03:40]} 48. c6 {[%emt 0:02:20]} Re8 {[%emt 0:01:12]} 49. Rxe5 {[%emt 0:03:52]} Qxd5+ {[%emt 0:00:38]} 50. Rxd5 {[%emt 0:00:03]} Re2+ {[%emt 0:00:11]} 51. Kf1 {[%emt 0:00:45]} Rc2 {[%emt 0:00:15]} 52. c7 {[%emt 0:00:03]} 1-0